Cogmind - Beta 13 @@@ ROGUE MODE // 2024.06.28 @ 20:40:37 Player: Bushwacker Result: Destroyed by G-34 Mercenary with Small Laser Performance ------------- Evolutions (0) 0 Regions Visited (1) 200 Robots Destroyed (9) 45 Value Destroyed (181) 181 Prototype IDs (0) 0 Alien Tech Used (0) 0 Bonus (0) 0 TOTAL SCORE: 426 Bonus ------- None Cogmind --------- Core Integrity 0/250 Matter 400/400 Energy 98/100 System Corruption 0% Temperature Cool (7) Movement Walking (120) Location -10/Materials Parts ------- > --- POWER (1) -------- (None) > --- PROPULSION (2) --- Aluminum Leg > --- UTILITY (2) ------ Medium Matter Pod Structural Scanner > --- WEAPON (2) ------- Small Laser > --- INVENTORY (5) ---- Aluminum Leg EM Pulse Gun Grenade Launcher Welding Torch Peak State ------------ > --- POWER ------------ Ion Engine > --- PROPULSION ------- Aluminum Leg Aluminum Leg > --- UTILITY ---------- Medium Matter Pod Structural Scanner > --- WEAPON ----------- Small Laser Assault Rifle > --- INVENTORY -------- Aluminum Leg EM Pulse Gun Grenade Launcher Welding Torch [Rating: 7] Favorites ----------- Power Ion Engine Engine Ion Engine Propulsion Aluminum Leg Leg Aluminum Leg Utility Medium Matter Pod Device Structural Scanner Storage Medium Matter Pod Weapon Small Laser Energy Gun Small Laser Ballistic Gun Assault Rifle Launcher Grenade Launcher Build | -11 -10 ------- Run | Yrd Mat Slots Evolved . | . . Power . | . . Propulsion . | . . Utility . | . . Weapon . | . . Parts Attached 11 | 8 3 Power 2 | 2 . Engine 2 | 2 . Core . | . . Reactor . | . . Propulsion 3 | 3 . Treads . | . . Leg 3 | 3 . Wheel . | . . Hover . | . . Flight . | . . Utility 2 | 1 1 Device 1 | . 1 Storage 1 | 1 . Processor . | . . Hackware . | . . Protection . | . . Artifact . | . . Weapon 4 | 2 2 Energy Gun 1 | 1 . Energy Cannon . | . . Ballistic Gun 2 | 1 1 Ballistic Cannon . | . . Launcher 1 | . 1 Special Weapon . | . . Impact Weapon . | . . Slashing Weapon . | . . Piercing Weapon . | . . Special Melee Weapon . | . . Unidentified Prototypes . | . . Parts Lost 2 | . 2 Power . | . . Propulsion 1 | . 1 Utility . | . . Weapon 1 | . 1 Highest Loss Streak 2 | . 2 To Critical Strikes . | . . Average Slot Usage (%) 86 | . 86 Engine 8 | . 8 Leg 26 | . 26 Device 9 | . 9 Storage 14 | . 14 Energy Gun 14 | . 14 Ballistic Gun 11 | . 11 Launcher 1 | . 1 Naked Turns . | . . Heaviest Build 11 | 10 11 Greatest Support 20 | 20 20 Greatest Overweight (x) . | . . Average Overweight (x) . | . . Largest Inventory Capacity 5 | 5 5 Average Capacity 5 | 5 5 Most Carried 5 | 5 5 Average Carried 3 | 1 4 Final Capacity 5 | 5 5 Final Carried 4 | 3 4 Class Distribution -------------------- 100% | Mutant Dominant Class ---------------- Mutant | -10/Materials Resources | -11 -10 ----------- Run | Yrd Mat Matter Collected 432 | 348 84 Remotely . | . . Salvage Created 283 | 103 180 Parts 26 | 12 14 Haulers Intercepted 1 | . 1 Recyclers Shooed 1 | . 1 Parts Field Recycled . | . . Retrieved Matter . | . . Parts Self-Destructed . | . . Prevented . | . . Kills | -11 -10 ------- Run | Yrd Mat Combat Hostiles Destroyed 4 | 1 3 Guns 4 | 1 3 Classes Destroyed 5 | 3 2 Worker 1 | 1 . Builder 1 | . 1 Tunneler 2 | 2 . Hauler 1 | . 1 Grunt 4 | 1 3 Best Kill Streak 3 | 3 3 Combat Bots Only 2 | 1 2 Max Kills in Single Turn 1 | 1 1 Gunslinging . | . . Exploded . | . . Melee . | . . Uniques/NPCs Destroyed . | . . Combat | -11 -10 -------- Run | Yrd Mat Hostile Shots Fired 64 | 2 62 Missed 15 | . 15 Damage Taken 697 | 24 673 Core 254 | . 254 Absorbed by Shields . | . . Regen/Repaired (Parts) 12 | . 12 Core Remaining (%) 100 | 100 . Volleys Fired 24 | 9 15 Largest 2 | 2 2 Hottest 70 | 60 70 Shots Fired 44 | 18 26 Gun 41 | 18 23 Cannon . | . . Launcher 3 | . 3 Special . | . . Kinetic 18 | 9 9 Thermal 23 | 9 14 Explosive 3 | . 3 Electromagnetic . | . . Robot Hit Streak 7 | 7 6 Robot Miss Streak 3 | 1 3 Penetration Max . | . . Secondary Targets 1 | . 1 Max Gunslinging Chain 1 | . 1 Shots Hit Robots 27 | 13 14 Core Hits 15 | 5 10 Critical Kills . | . . Critical Parts Destroyed . | . . Critical Strikes . | . . Melee Attacks . | . . Impact . | . . Slashing . | . . Piercing . | . . Sneak Attacks . | . . Combat Hostiles . | . . Follow-up Attacks . | . . Damage Inflicted 521 | 147 374 Guns 330 | 147 183 Cannons . | . . Explosions 191 | . 191 Melee . | . . Ramming . | . . Kinetic 133 | 72 61 Thermal 197 | 75 122 Explosive 191 | . 191 Electromagnetic . | . . Impact . | . . Slashing . | . . Piercing . | . . Highest Corruption . | . . Average Corruption . | . . Corruption Purged . | . . Corruption Blocked . | . . Overload Shots . | . . Overflow Damage . | . . Projectiles . | . . Explosions . | . . Melee . | . . Knockbacks . | . . Impact . | . . Kinetic . | . . Secondary . | . . Self-Inflicted Damage 36 | . 36 Shots 1 | . 1 Rammed . | . . Targets Rammed . | . . Kicked . | . . Crushed . | . . Highest Temperature 93 | 12 93 Average Temperature 36 | 10 41 Received Heat Transfer 384 | 12 372 Siege Activations . | . . Robots Corrupted . | . . Combat Hostiles . | . . Parts Fried . | . . Impact Corruptions . | . . Robots Melted . | . . Combat Hostiles . | . . Parts Melted . | . . Heat Transferred 450 | 175 275 Parts Sabotaged . | . . Parts Stolen . | . . Parts Stripped . | . . Power Chain Reactions . | . . Alert | -11 -10 ------- Run | Yrd Mat Peak Influence 129 | 35 129 Initial 22 | . 22 Average 33 | 11 46 Maximum Alert Level . | . . Low Security (%) 100 | 100 100 Level 1 . | . . Level 2 . | . . Level 3 . | . . Level 4 . | . . Level 5 . | . . High Security . | . . Max Security . | . . Squads Dispatched . | . . Investigation . | . . Extermination . | . . Reinforcement . | . . Assault . | . . Garrison . | . . Intercept . | . . Searches Triggered . | . . Construction Impeded . | . . Haulers Reinforced . | . . Active Scanning Responses . | . . Cargo Convoy Interrupts . | . . Stealth | -11 -10 --------- Run | Yrd Mat Distress Signals . | . . Communications Jammed . | . . Distress Signals . | . . Times Spotted 6 | 1 5 Peak Tracking Total 4 | 1 4 Tactical Retreats . | . . Traps | -11 -10 ------- Run | Yrd Mat Traps Triggered . | . . Indirectly . | . . Trap Hack Attempts . | . . Triggered . | . . Disarmed . | . . Reprogrammed . | . . Reused . | . . Traps Extracted . | . . Installed . | . . Triggered . | . . Machines | -11 -10 ---------- Run | Yrd Mat Machines Disabled 1 | . 1 Max in Single Turn 1 | . 1 Machines Repaired . | . . Machines Dismantled . | . . Machines Sabotaged . | . . Overloaded Fab Kills . | . . Hacking | -11 -10 --------- Run | Yrd Mat Machines Accessed 4 | . 4 Terminals 2 | . 2 Fabricators . | . . Repair Stations 1 | . 1 Recycling Units 1 | . 1 Scanalyzers . | . . Garrison Access . | . . Total Hacks 11 | . 11 Successful 8 | . 8 Failed 3 | . 3 Catastrophic 1 | . 1 Database Lockouts . | . . Manual . | . . Terminals 5 | . 5 Fabricators . | . . Repair Stations 3 | . 3 Recycling Units 3 | . 3 Scanalyzers . | . . Garrison Access . | . . Terminal Hacks 4 | . 4 Record 2 | . 2 Reinforcement Status 1 | . 1 Registered Components 1 | . 1 Fabricator Hacks . | . . Repair Station Hacks 2 | . 2 Scan Component 1 | . 1 Repair 1 | . 1 Recycling Unit Hacks 2 | . 2 Recycle Component 1 | . 1 Process 1 | . 1 Scanalyzer . | . . Garrison Access Hacks . | . . Unauthorized Hacks . | . . Terminals . | . . Fabricators . | . . Repair Stations . | . . Recycling Units . | . . Scanalyzers . | . . Garrison Access . | . . Data Cores Recovered . | . . Used . | . . Hacking Detections 2 | . 2 Full Trace Events . | . . Feedback Events . | . . Feedback Blocked . | . . Robot Schematics Acquired . | . . Robots Built . | . . Authchips . | . . Time . | . . Total Robot Build Rating . | . . Part Schematics Acquired . | . . Parts Built . | . . Authchips . | . . Time . | . . Total Part Build Rating . | . . Parts Repaired 1 | . 1 Time 26 | . 26 Parts Recycled 1 | . 1 Recycled Matter 36 | . 36 Retrieved Matter . | . . Retrieved Components . | . . Parts Scanalyzed . | . . Part Schematics Acquired . | . . Parts Damaged . | . . Bothacking | -11 -10 ------------ Run | Yrd Mat Used RIF Installer . | . . Robots Hacked . | . . Non-combat . | . . Combat . | . . Robot Hacks Applied . | . . Relay Couplers Released . | . . Fabnet Peak Effective % . | . . Robots Rewired . | . . Allies Hacked . | . . Hacks Repelled . | . . Allies | -11 -10 -------- Run | Yrd Mat Total Allies . | . . Largest Group . | . . Highest-Rated Group . | . . Highest-Rated Ally . | . . Total Orders . | . . Ally Attacks . | . . Total Damage . | . . Kills . | . . Allies Corrupted . | . . Allies Melted . | . . Intel | -11 -10 ------- Run | Yrd Mat Robot Analysis Total . | . . Derelict Logs Recovered . | . . Drone Launches . | . . Drone Recoveries . | . . Exploration | -11 -10 ------------- Run | Yrd Mat Turns Passed 389 | 142 247 Spaces Moved 254 | 90 164 Core 21 | 21 . Treads . | . . Legs 233 | 69 164 Wheels . | . . Hover . | . . Flight . | . . Fastest Speed 50 | 50 120 Average Speed 114 | 103 120 Slowest Speed 120 | 120 120 Overloaded Moves . | . . Propulsion Burnouts . | . . Robots Hopped . | . . Cave-ins Triggered . | . . Exploration Rate (%) 16 | 5 27 Regions Visited 1 Branch Regions . Pre-discovered Areas . | . . Known Exits Taken . | . . Unknown Exits Taken 1 | 1 . Scrap Searched . | . . Spaces Dug . | . . Terrain Destroyed 15 | . 15 Melee . | . . Projectile . | . . AOE 15 | . 15 Terrain Rammed . | . . Walls Destroyed . | . . Machines Disabled . | . . Actions | -11 -10 --------- Run | Yrd Mat Total 309 | 121 188 Wait 1 | . 1 Move 253 | 89 164 Hop . | . . Pick Up 16 | 12 4 Fast Attach . | . . Attach 7 | 6 1 Detach . | . . Swap 4 | 2 2 Drop 4 | 3 1 Fire 24 | 9 15 Melee . | . . Ram . | . . Kick . | . . Crush . | . . Escape Stasis . | . . Rewire . | . . Trap . | . . Miscellaneous . | . . Route ------- -11/Scrapyard -10/Materials History --------- Turn | Location | Event 2 | -11/Scrapyard | Met Revision 17 90 | -11/Scrapyard | Discovered new exit (range 8) 143 | -11/Scrapyard | Entered Materials 300 | -10/Materials | Build established: Mutant 322 | -10/Materials | Repaired Ion Engine? 370 | -10/Materials | Core integrity fell below 50% 383 | -10/Materials | Core integrity fell below 20% 390 | -10/Materials | Destroyed by G-34 Mercenary with Small Laser Last Messages --------------- R-06 Scavenger collects Welding Torch. A-02 Transporter destroyed. [Achievement: Loot Pinata] The unstable cave ceiling collapses. Acquired 42 matter. Critical hit (Burn: +37). Integration Channel disabled. Aluminum Leg destroyed. K-01 Serf collects debris. G-34 Mercenary destroyed. Switching to secondary target: G-47 Trooper. Assault Rifle destroyed. K-01 Serf collects debris. U-05 Engineer lays Concrete. G-47 Trooper destroyed. Acquired 42 matter. K-01 Serf collects debris. U-05 Engineer lays Concrete. K-01 Serf collects debris. U-05 Engineer lays Concrete. Map ----- +----------------------------------------------------+ | | | | | | | ?????????????????????????????????????????????????? | | ?????????????????????????????????????????????????? | | ?????????????????????????????????????????????????? | | ?????????????????????????????????????????????????? | | ?????????????????????????????????????????????????? | | ?????????????????????????????????????????????????? | | ?????????????????????????????????????????????????? | | ??????????????????????????g??????????????????????? | | ?????????????????????? g #?????????????????? | | ??????????????????????####/#####?????????????????? | | ?????????????????????? T ##?????????????????? | | ??????????????????????? ##?????????????????? | | ????????????????? ??? ##?????????????????? | | ?????????????????## ??" ##?????????????????? | | ?????????????????## ? "" ##?????????????????? | | ?????????????????## "" ##?????????????????? | | ?????????????????## """ ##?????????????????? | | ?????????????????## "" # ?????????????????? | | ?????????????????## "" + ?????????????????? | | ????????????????? # # ?????????????????? | | ????????????????? # # ?????????????????? | | ????????????????? # # ?????????????????? | | ????????????????? + @ u# ?????????????????? | | ????????????????? # [# ?????????????????? | | ????????????????? # # ?????????????????? | | ????????????????? ####### k# # ????????? | | ????????????????? #########gg!########## ????????? | | ???????????????????????### *[=# # ????????? | | ????????????????????????## =%=# # ????????? | | ????????????????????????## !=%[ """ # ????????? | | ????????????????????????###%! """""??????????? | | ????????????????????????###= """""# ????????? | | ????????????????????????## ! """""# ????????? | | ????????????????????????## # """ # ????????? | | ????????????????????????### # # ????????? | | ????????????????????????### # # ????????? | | ?????????????????????????## ########## ????????? | | ?????????????????????????## # # ????????? | | ?????????????????????????## # ?????????????????? | | ??????????##########?????## # ?????????????????? | | ??????????##########?????## # ?????????????????? | | ??????????## ######### ^ # ?????????????????? | | ??????????## #########^^ # ?????????????????? | | ??????????##"" !!!## # # ?????????????????? | | ??????????##"Y !!!##""" # # ?????????????????? | | ??????????##"" ! ##""" # # ?????????????????? | | ?########### ##""" + #########??????????? | +----------------------------------------------------+ Best States ------------- Heat Dissipation 25 Energy Generation 10 Energy Capacity 250 Matter Stores 400 Matter Capacity 400 Sight Range 16 Terrain Scan Density 10 Evasion (%) 55 Item Schematics ----------------- None Robot Schematics ------------------ None Fabricated ------------ Nothing Alien Tech Used ----------------- None Achievements -------------- Loot Pinata Challenges ------------ None Game ------ Seed GatlingUtilityKinecellerator Manual? 0 Play Time 00:08:02 Cumulative 0.5 hours Start 2024.06.28 @ 20:35:32 End 2024.06.28 @ 20:40:37 Sessions 1 Manual Loads 0 Difficulty Rogue Special Mode None Game No. 3 Rogue 3 Adventurer 0 Explorer 0 Win Type - Total 0 Types 0/0/0/0/0/0/0/0/0 Lore% 0 Gallery% 2 Achievement% 2 Wizard Run 0 Options --------- Layout 1 ASCII 0 Keyboard 0 Movement Mouse Keybinds 0 Fullscreen 2 Font 32/Tamsyn Map View 77x35 Zoom Use 0% Tactical HUD 0 Map Filters NONE Filters NONE Steam 1 RUN: 3dab6856-6efe-4cc5-8440-52e6781eafef